fUSD/lending_fUSD_20250128
["ID","MTS","AMOUNT","RATE_DAILY","PERIOD"]
[350704091,1738072243236,-500.0,0.0001863,2]
[350704092,1738072243246,-500.0,0.0001863,2]
[350704093,1738072243258,-500.0,0.0001863,2]
[350704094,1738072243268,-500.0,0.0001863,2]
[350704095,1738072243278,-383.03221381,0.0001863,2]
[350704096,1738072243287,-500.0,0.0001863,2]
[350704097,1738072243297,-500.0,0.0001863,2]
[350704098,1738072243307,-500.0,0.0001863,2]
[350704100,1738072243316,-500.0,0.0001863,2]
[350704102,1738072243327,-500.0,0.0001863,2]
[350704104,1738072243336,-500.0,0.0001863,2]
[350704106,1738072243346,-500.0,0.0001863,2]
[350704109,1738072243356,-500.0,0.0001863,2]
[350704111,1738072243366,-500.0,0.0001863,2]
[350704113,1738072243375,-500.0,0.0001863,2]
[350704115,1738072243385,-500.0,0.0001863,2]
[350704117,1738072243395,-500.0,0.0001863,2]
[350704119,1738072243404,-500.0,0.0001863,2]
[350704121,1738072243414,-500.0,0.0001863,2]
[350704123,1738072243423,-500.0,0.0001863,2]
[350704125,1738072243433,-500.0,0.0001863,2]
[350704127,1738072243442,-500.0,0.0001863,2]
[350704129,1738072243451,-500.0,0.0001863,2]
[350704131,1738072243461,-229.2687843,0.0001863,2]
[350704133,1738072243470,-500.0,0.0001863,2]
[350704135,1738072243480,-500.0,0.0001863,2]
[350704137,1738072243490,-500.0,0.0001863,2]
[350704139,1738072243501,-500.0,0.0001863,2]
[350704141,1738072243511,-500.0,0.0001863,2]
[350704142,1738072243520,-500.0,0.0001863,2]
[350704143,1738072243530,-500.0,0.0001863,2]
[350704144,1738072243540,-500.0,0.0001863,2]
[350704145,1738072243549,-500.0,0.0001863,2]
[350704146,1738072243559,-500.0,0.0001863,2]
[350704147,1738072243569,-500.0,0.0001863,2]
[350704148,1738072243579,-500.0,0.0001863,2]
[350704149,1738072243589,-500.0,0.0001863,2]
[350704150,1738072243600,-154.48601562,0.0001863,2]
[350704151,1738072243611,-500.0,0.0001863,2]
[350704152,1738072243620,-500.0,0.0001863,2]
[350704153,1738072243630,-500.0,0.0001863,2]
[350704154,1738072243639,-500.0,0.0001863,2]
[350704155,1738072243650,-445.90141675,0.0001863,2]
[350704156,1738072243683,-54.09858325,0.0001863,2]
[350704157,1738072243692,-500.0,0.0001863,2]
[350704158,1738072243703,-473.33891937,0.0001863,2]
[350704159,1738072243715,-26.66108063,0.0001863,2]
[350704160,1738072243725,-500.0,0.0001863,2]
[350704161,1738072243735,-500.0,0.0001863,2]
[350704162,1738072243744,-337.02726866,0.0001863,2]
[350704163,1738072243758,-162.97273134,0.0001863,2]
[350704164,1738072243768,-500.0,0.0001863,2]
[350704165,1738072243777,-500.0,0.0001863,2]
[350704166,1738072243786,-53.93168526,0.0001863,2]
[350704167,1738072243799,-265.40138047,0.0001863,2]
[350704168,1738072243810,-180.66693427,0.0001863,2]
[350704169,1738072243820,-500.0,0.0001863,2]
[350704170,1738072243829,-500.0,0.0001863,2]
[350704171,1738072243839,-500.0,0.0001863,2]
[350704172,1738072243848,-500.0,0.0001863,2]
[350704173,1738072243857,-102.08412498,0.0001863,2]
[350704174,1738072243870,-397.91587502,0.0001863,2]
[350704175,1738072243879,-500.0,0.0001863,2]
[350704176,1738072243888,-500.0,0.0001863,2]
[350704177,1738072243898,-500.0,0.0001863,2]
[350704178,1738072243907,-500.0,0.0001863,2]
[350704179,1738072243916,-500.0,0.0001863,2]
[350704180,1738072243925,-500.0,0.0001863,2]
[350704181,1738072243935,-500.0,0.0001863,2]
[350704182,1738072243944,-500.0,0.0001863,2]
[350704183,1738072243953,-500.0,0.0001863,2]
[350704184,1738072243963,-447.08412498,0.0001863,2]
[350704185,1738072243976,-52.91587502,0.0001863,2]
[350704186,1738072243986,-215.76694478,0.0001863,2]
[350704187,1738072243996,-500.0,0.0001863,2]
[350704188,1738072244007,-314.4171802,0.0001863,2]
[350704189,1738072244458,-2000.0,0.00015739,2]
[350704190,1738072244467,-185.5828198,0.0001863,2]
[350704191,1738072244483,-500.0,0.0001863,2]
[350704192,1738072244495,-500.0,0.0001863,2]
[350704193,1738072244506,-500.0,0.0001863,2]
[350704194,1738072244516,-500.0,0.0001863,2]
[350704195,1738072244526,-500.0,0.0001863,2]
[350704196,1738072244537,-500.0,0.0001863,2]
[350704197,1738072244547,-500.0,0.0001863,2]
[350704198,1738072244556,-500.0,0.0001863,2]
[350704199,1738072244567,-500.0,0.0001863,2]
[350704200,1738072244576,-500.0,0.0001863,2]
[350704201,1738072244586,-395.75448355,0.0001863,2]
[350704202,1738072244596,-500.0,0.0001863,2]
[350704203,1738072244614,-500.0,0.0001863,2]
[350704204,1738072244625,-500.0,0.0001863,2]
[350704205,1738072244635,-500.0,0.0001863,2]
[350704206,1738072244644,-500.0,0.0001863,2]
[350704207,1738072244655,-553.89401722,0.0001863,2]
[350704208,1738072244664,-500.0,0.0001863,2]
[350704209,1738072244674,-523.11,0.0001863,2]
[350704210,1738072244685,-523.11,0.0001863,2]
[350704211,1738072244694,-523.11,0.0001863,2]
[350704212,1738072244704,-523.11,0.0001863,2]
[350704213,1738072244713,-751.6,0.0001863,2]
[350704214,1738072244723,-523.11,0.0001863,2]
[350704215,1738072244733,-751.6,0.0001863,2]
[350704216,1738072244742,-523.11,0.0001863,2]
[350704217,1738072244753,-751.6,0.0001863,2]
[350704218,1738072244763,-523.11,0.0001863,2]
[350704219,1738072244773,-742.49,0.0001863,2]
[350704220,1738072244783,-751.6,0.0001863,2]
[350704221,1738072244793,-523.11,0.0001863,2]
[350704222,1738072244803,-742.49,0.0001863,2]
[350704223,1738072244812,-751.6,0.0001863,2]
[350704224,1738072244822,-523.11,0.0001863,2]
[350704225,1738072244832,-742.49,0.0001863,2]
[350704226,1738072244841,-751.6,0.0001863,2]
[350704227,1738072244851,-523.11,0.0001863,2]
[350704228,1738072244861,-742.49,0.0001863,2]
[350704229,1738072244871,-751.6,0.0001863,2]
[350704230,1738072244881,-523.11,0.0001863,2]
[350704231,1738072244891,-742.49,0.0001863,2]
[350704232,1738072244901,-751.6,0.0001863,2]
[350704233,1738072244911,-523.11,0.0001863,2]
[350704234,1738072244922,-742.49,0.0001863,2]
[350704235,1738072244932,-507.7,0.0001863,2]
[350704236,1738072244942,-751.6,0.0001863,2]
[350704237,1738072244952,-523.11,0.0001863,2]
[350704238,1738072244963,-507.7,0.0001863,2]
[350704239,1738072244972,-742.49,0.0001863,2]
[350704240,1738072244982,-751.6,0.0001863,2]
[350704241,1738072244992,-523.11,0.0001863,2]
[350704242,1738072245004,-507.7,0.0001863,2]
[350704243,1738072245014,-742.49,0.0001863,2]
[350704244,1738072245024,-751.6,0.0001863,2]
[350704245,1738072245033,-523.11,0.0001863,2]
[350704246,1738072245043,-507.7,0.0001863,2]
[350704247,1738072245053,-751.6,0.0001863,2]
[350704248,1738072245063,-742.49,0.0001863,2]
[350704249,1738072245073,-507.7,0.0001863,2]
[350704250,1738072245083,-523.11,0.0001863,2]
[350704251,1738072245093,-751.6,0.0001863,2]
[350704252,1738072245103,-742.49,0.0001863,2]
[350704253,1738072245113,-507.7,0.0001863,2]
[350704254,1738072245287,-523.11,0.0001863,2]
[350704255,1738072245304,-751.6,0.0001863,2]
[350704256,1738072245313,-742.49,0.0001863,2]
[350704257,1738072245322,-507.7,0.0001863,2]
[350704258,1738072245331,-751.6,0.0001863,2]
[350704259,1738072245341,-523.11,0.0001863,2]
[350704260,1738072245350,-742.49,0.0001863,2]
[350704261,1738072245359,-507.7,0.0001863,2]
[350704262,1738072245368,-751.6,0.0001863,2]
[350704263,1738072245377,-523.11,0.0001863,2]
[350704264,1738072245386,-507.7,0.0001863,2]
[350704265,1738072245395,-751.6,0.0001863,2]
[350704266,1738072245404,-523.11,0.0001863,2]
[350704267,1738072245413,-742.49,0.0001863,2]
[350704268,1738072245422,-507.7,0.0001863,2]
[350704269,1738072245431,-751.6,0.0001863,2]
[350704270,1738072245441,-523.11,0.0001863,2]
[350704271,1738072245450,-742.49,0.0001863,2]
[350704272,1738072245459,-751.6,0.0001863,2]
[350704273,1738072245469,-523.11,0.0001863,2]
[350704274,1738072245478,-507.7,0.0001863,2]
[350704275,1738072245487,-681.38867943,0.0001863,2]
[350704276,1738072245520,-61.10132057,0.0001863,2]
[350704277,1738072245530,-751.6,0.0001863,2]
[350704278,1738072245539,-251.80487093,0.0001863,2]
[350704286,1738072245962,-255.89512907,0.0001863,2]
[350704287,1738072245972,-179.25487093,0.0001863,2]
[350704288,1738072246114,-563.23512907,0.0001863,2]
[350704289,1738072246124,-270.91858533,0.0001863,2]
[350704290,1738072246141,-252.19141467,0.0001863,2]
[350704291,1738072246151,-751.6,0.0001863,2]
[350704292,1738072246161,-507.7,0.0001863,2]
[350704293,1738072246171,-742.49,0.0001863,2]
[350704294,1738072246180,-751.6,0.0001863,2]
[350704295,1738072246189,-176.41858533,0.0001863,2]
[350704296,1738072246204,-346.8607819,0.0001863,2]
[350704297,1738072246214,-507.7,0.0001863,2]
[350704298,1738072246223,-598.86111336,0.0001863,2]
[350704299,1738072246271,-143.62888664,0.0001863,2]
[350704300,1738072246281,-751.6,0.0001863,2]
[350704301,1738072246291,-742.49,0.0001863,2]
[350704302,1738072246301,-751.68519503,0.0001863,2]
[350704303,1738072246311,-507.7,0.0001863,2]
[350704304,1738072246320,-187.30916883,0.0001863,2]
[350704305,1738072326461,2531.48481146,0.00011868,2]
[350704306,1738072326741,2531.48481146,0.00011911,2]
[350704307,1738072327055,2531.48481146,0.00011853,2]
[350704308,1738072327345,2531.48481146,0.00011863,2]
[350704309,1738072327681,2531.48481146,0.00011902,2]
[350704310,1738072334330,300.08349472,0.00011895,2]
[350704311,1738072334578,300.08349472,0.00011905,2]
[350704312,1738072334935,300.08349472,0.0001185,2]
[350704313,1738072335236,300.08349472,0.00011848,2]
[350704314,1738072335588,300.08349472,0.0001184,2]
[350704315,1738072343006,200.0,0.00011879,2]
[350704316,1738072350924,200.0,0.00011914,2]
[350704317,1738072359009,200.0,0.00011903,2]
[350704318,1738072367174,200.0,0.0001187,2]
[350704319,1738072367465,200.0,0.00011851,2]
[350704320,1738072413926,183.86,0.00017934,30]
[350704321,1738072469989,152.97,0.00010137,2]
[350704323,1738072723990,156.71075,0.00010958,2]
[350704324,1738072724306,156.71075,0.00010958,2]
[350704325,1738072724642,156.71075,0.00011759,2]
[350704326,1738072724946,156.71075,0.00011878,2]
[350704327,1738072725265,156.71075,0.00011917,2]
[350704328,1738072725576,156.71075,0.00011917,2]
[350704329,1738072725878,156.71075,0.00011918,2]
[350704330,1738072726370,156.71075,0.00011988,2]
[350704331,1738072726703,156.71075,0.00011995,2]
[350704332,1738072727010,156.71075,0.00011997,2]
[350704333,1738072727340,156.71075,0.00011998,2]
[350704334,1738072727666,156.71075,0.00011999,2]
[350704335,1738072747599,156.112929,0.00010958,2]
[350704336,1738072748379,156.112929,0.00010958,2]
[350704337,1738072748703,156.112929,0.00011067,2]
[350704338,1738072749509,156.112929,0.00011644,2]
[350704339,1738072749840,156.112929,0.00011875,2]
[350704340,1738072750160,156.112929,0.00011896,2]
[350704341,1738072750491,156.112929,0.00011917,2]
[350704342,1738072750833,156.112929,0.00011917,2]
[350704343,1738072751167,156.112929,0.00011917,2]
[350704344,1738072751488,156.112929,0.00011918,2]
[350704345,1738072751813,156.112929,0.00011918,2]
[350704346,1738072752124,156.112929,0.00011988,2]
[350704347,1738072752455,156.112929,0.00011988,2]
[350704348,1738072752773,156.112929,0.00011995,2]
[350704349,1738072753082,156.112929,0.00011997,2]
[350704350,1738072753400,156.112929,0.00011998,2]
[350704351,1738072753723,156.112929,0.00011998,2]
[350704352,1738072754133,156.112929,0.00011998,2]
[350704353,1738072754445,156.112929,0.00011999,2]
[350704354,1738073054521,200.0,0.00011905,2]
[350704355,1738073054823,200.0,0.00011866,2]
[350704356,1738073055218,200.0,0.00011825,2]
[350704357,1738073055554,200.0,0.0001186,2]
[350704358,1738073069604,200.0,0.00011883,2]
[350704359,1738073069898,200.0,0.00011915,2]
[350704360,1738073070203,200.0,0.00011902,2]
[350704361,1738073070521,200.0,0.00011916,2]
[350704362,1738073106708,16151.62035541,0.00011829,2]
[350704363,1738073107026,16151.62035541,0.00011908,2]
[350704364,1738073107320,16151.62035541,0.00011832,2]
[350704365,1738073107645,16151.62035541,0.00011915,2]
[350704366,1738073107933,16151.62035541,0.00011833,2]
[350704367,1738073114413,1995.22853156,0.00011837,2]
[350704368,1738073114705,1995.22853156,0.00011843,2]
[350704369,1738073115401,1995.22853156,0.0001188,2]
[350704370,1738073115757,1995.22853156,0.00011865,2]
[350704371,1738073116040,1995.22853156,0.00011837,2]
[350704376,1738073306740,190.15,0.00017303,30]
[350704377,1738073325938,181.29,0.00010137,2]
[350704396,1738073436915,-361.66249809,0.00013,2]
[350704397,1738073436977,-188.33750191,0.00013,2]
[350704398,1738073436987,-1069.80249332,0.00013,5]
[350704399,1738073437038,-262.65054447,0.00013,5]
[350704489,1738073438018,-635.6,0.00013,5]
[350704496,1738073438078,-859.095,0.00013,5]
[350704498,1738073438090,-368.4,0.00013,5]
[350704505,1738073438138,-1877.54313522,0.00013,5]
[350704524,1738073438309,-483.36186478,0.00013,5]
[350704526,1738073438319,-150.0,0.00013894,2]
[350704528,1738073438328,-150.0,0.000143,2]
[350704530,1738073438337,-150.0,0.000143,2]
[350704532,1738073438347,-600.0,0.00015,2]
[350704534,1738073438356,-392.32,0.00015639,2]
[350704536,1738073438365,-181.29,0.00016813,2]
[350704538,1738073438374,-41.75277484,0.00017,2]
[350704540,1738073438386,-608.24722516,0.00017,2]
[350704542,1738073438395,-500.0,0.00017056,2]
[350704544,1738073438405,-300.0,0.00017064,2]
[350704546,1738073438415,-1000.0,0.00017065,2]
[350704548,1738073438425,-150.0,0.00017086,2]
[350704550,1738073438435,-152.61,0.00017344,2]
[350704552,1738073438445,-152.61,0.00017354,2]
[350704554,1738073438455,-152.61,0.00017365,2]
[350704556,1738073438464,-152.61,0.00017376,2]
[350704558,1738073438473,-152.61,0.00017387,2]
[350704560,1738073438483,-152.61,0.00017398,2]
[350704562,1738073438492,-152.61,0.00017409,2]
[350704564,1738073438501,-152.61,0.0001742,2]
[350704566,1738073438510,-152.61,0.0001743,2]
[350704568,1738073438521,-215.0,0.0001762,2]
[350704570,1738073438531,-325.06,0.00017701,2]
[350704572,1738073438540,-166.39,0.00017764,2]
[350704574,1738073438550,-576.785,0.00017764,2]
[350704576,1738073438559,-576.785,0.00017764,2]
[350704578,1738073438568,-576.785,0.00017764,2]
[350704580,1738073438577,-576.785,0.00017764,2]
[350704582,1738073438587,-576.785,0.00017764,2]
[350704584,1738073438597,-576.785,0.00017764,2]
[350704586,1738073438606,-576.785,0.00017764,2]
[350704588,1738073438615,-576.785,0.00017764,2]
[350704590,1738073438626,-576.785,0.00017764,2]
[350704592,1738073438635,-576.785,0.00017764,2]
[350704594,1738073438644,-392.32,0.00017903,2]
[350704596,1738073438653,-215.0,0.0001794,2]
[350704598,1738073438662,-152.519,0.00018237,2]
[350704599,1738073438672,-3906.0,0.00018237,2]
[350704600,1738073438681,-1005.0,0.00018237,2]
[350704601,1738073438689,-215.0,0.0001827,2]
[350704602,1738073438698,-547.111,0.0001833,2]
[350704603,1738073438708,-400.0,0.000184,6]
[350704605,1738073438717,-2760.89773484,0.0001843,2]
[350704649,1738073440143,-11188.90438045,0.0001843,2]
[350704650,1738073440155,-7497.1139162,0.0001843,2]
[350704651,1738073440166,-3057.69925,0.0001843,2]
[350704652,1738073440177,-1940.9693412,0.0001843,2]
[350704653,1738073440188,-2097.86412202,0.0001843,2]
[350704654,1738073440209,-733.024512,0.0001843,2]
[350704655,1738073440220,-2589.50044772,0.0001843,2]
[350704656,1738073440231,-14196.06048722,0.0001843,2]
[350704657,1738073440243,-475.96685291,0.0001843,2]
[350704658,1738073440254,-436.8556796,0.0001843,2]
[350704659,1738073440271,-2669.04000002,0.0001843,2]
[350704660,1738073440390,-4271.39610785,0.0001843,2]
[350704661,1738073440401,-4885.36277484,0.0001843,2]
[350704662,1738073440410,-3000.0,0.0001844,2]
[350704663,1738073440420,-150.0,0.00018448,2]
[350704664,1738073440430,-493.11,0.00018466,2]
[350704665,1738073440439,-150.0,0.00018466,2]
[350704666,1738073440449,-500.0,0.00018481,2]
[350704667,1738073440458,-800.0,0.000185,6]
[350704668,1738073440468,-266.41481276,0.00018502,2]
[350704669,1738073440477,-3873.6325,0.0001853,2]
[350704670,1738073440486,-174.65517067,0.0001853,2]
[350704671,1738073440495,-158.53265206,0.0001853,2]
[350704672,1738073440504,-6614.63813684,0.0001853,2]
[350704673,1738073440513,-593.5464,0.0001853,2]
[350704674,1738073440523,-215.0,0.0001859,2]
[350704675,1738073440534,-152.97,0.00018594,2]
[350704676,1738073440543,-1200.0,0.000186,6]
[350704677,1738073440553,-924.0,0.00018603,2]
[350704678,1738073440563,-23540.0,0.00018603,2]
[350704679,1738073440571,-619.86,0.0001862,3]
[350704680,1738073440580,-297.7,0.0001862,2]
[350704681,1738073440589,-675.06,0.00018629,2]
[350704682,1738073440599,-289.384774,0.0001863,2]
[350704683,1738073440608,-532.0,0.0001863,2]
[350704684,1738073440617,-81269.85866706,0.0001863,2]
[350704685,1738073440625,-6872.32823383,0.0001863,2]
[350704686,1738073440634,-500.0,0.0001863,2]
[350704687,1738073440643,-500.0,0.0001863,2]
[350704688,1738073440652,-500.56585455,0.0001863,2]
[350704689,1738073440662,-500.0,0.0001863,2]
[350704690,1738073440671,-500.0,0.0001863,2]
[350704691,1738073440681,-500.0,0.0001863,2]
[350704693,1738073440690,-501.78364334,0.0001863,2]
[350704695,1738073440699,-507.07794577,0.0001863,2]
[350704697,1738073440709,-501.46347694,0.0001863,2]
[350704699,1738073440718,-500.0,0.0001863,2]
[350704701,1738073440727,-500.0,0.0001863,2]
[350704703,1738073440737,-500.0,0.0001863,2]
[350704705,1738073440747,-500.28896415,0.0001863,2]
[350704707,1738073440756,-502.0110222,0.0001863,2]
[350704709,1738073440766,-501.36040287,0.0001863,2]
[350704711,1738073440777,-502.81777715,0.0001863,2]
[350704713,1738073440786,-500.0,0.0001863,2]
[350704715,1738073440795,-503.95630134,0.0001863,2]
[350704718,1738073440805,-500.0,0.0001863,2]
[350704721,1738073440815,-500.0,0.0001863,2]
[350704724,1738073440823,-500.0,0.0001863,2]
[350704727,1738073440832,-500.0,0.0001863,2]
[350704729,1738073440842,-500.0,0.0001863,2]
[350704731,1738073440851,-500.0,0.0001863,2]
[350704733,1738073440860,-500.0,0.0001863,2]
[350704735,1738073440870,-500.0,0.0001863,2]
[350704737,1738073440879,-500.0,0.0001863,2]
[350704739,1738073440889,-500.0,0.0001863,2]
[350704741,1738073440898,-500.0,0.0001863,2]
[350704743,1738073440907,-500.0,0.0001863,2]
[350704745,1738073440917,-500.0,0.0001863,2]
[350704747,1738073440926,-500.0,0.0001863,2]
[350704749,1738073440935,-500.0,0.0001863,2]
[350704751,1738073440945,-500.0,0.0001863,2]
[350704753,1738073440954,-500.0,0.0001863,2]
[350704755,1738073440964,-500.0,0.0001863,2]
[350704757,1738073440979,-500.0,0.0001863,2]
[350704759,1738073440989,-500.0,0.0001863,2]
[350704761,1738073440998,-500.0,0.0001863,2]
[350704763,1738073441007,-500.0,0.0001863,2]
[350704764,1738073441018,-500.0,0.0001863,2]
[350704767,1738073441028,-533.91943995,0.0001863,2]
[350704768,1738073441037,-500.0,0.0001863,2]
[350704771,1738073441047,-500.0,0.0001863,2]
[350704772,1738073441056,-500.0,0.0001863,2]
[350704774,1738073441067,-500.0,0.0001863,2]
[350704777,1738073441076,-500.0,0.0001863,2]
[350704779,1738073441086,-500.0,0.0001863,2]
[350704781,1738073441095,-500.0,0.0001863,2]
[350704782,1738073441104,-500.0,0.0001863,2]
[350704785,1738073441114,-500.0,0.0001863,2]
[350704787,1738073441123,-500.0,0.0001863,2]
[350704788,1738073441133,-500.0,0.0001863,2]
[350704791,1738073441143,-500.0,0.0001863,2]
[350704793,1738073441152,-500.0,0.0001863,2]
[350704795,1738073441162,-500.0,0.0001863,2]
[350704796,1738073441171,-552.20655461,0.0001863,2]
[350704798,1738073441181,-500.0,0.0001863,2]
[350704799,1738073441190,-500.0,0.0001863,2]
[350704800,1738073441200,-500.0,0.0001863,2]
[350704801,1738073441209,-500.0,0.0001863,2]
[350704802,1738073441219,-315.4,0.0001863,2]
[350704803,1738073441228,-500.0,0.0001863,2]
[350704804,1738073441237,-500.0,0.0001863,2]
[350704805,1738073441247,-500.0,0.0001863,2]
[350704806,1738073441257,-500.0,0.0001863,2]
[350704807,1738073441266,-500.0,0.0001863,2]
[350704808,1738073441276,-500.0,0.0001863,2]
[350704809,1738073441285,-500.0,0.0001863,2]
[350704810,1738073441294,-500.0,0.0001863,2]
[350704811,1738073441304,-500.0,0.0001863,2]
[350704812,1738073441313,-500.0,0.0001863,2]
[350704813,1738073441322,-500.0,0.0001863,2]
[350704814,1738073441331,-500.0,0.0001863,2]
[350704815,1738073441340,-500.0,0.0001863,2]
[350704816,1738073441350,-500.0,0.0001863,2]
[350704817,1738073441359,-500.0,0.0001863,2]
[350704818,1738073441368,-500.0,0.0001863,2]
[350704819,1738073441377,-500.0,0.0001863,2]
[350704820,1738073441386,-500.0,0.0001863,2]
[350704821,1738073441395,-500.0,0.0001863,2]
[350704822,1738073441404,-500.0,0.0001863,2]
[350704823,1738073441414,-500.0,0.0001863,2]
[350704824,1738073441423,-500.0,0.0001863,2]
[350704825,1738073441432,-500.0,0.0001863,2]
[350704826,1738073441442,-500.0,0.0001863,2]
[350704827,1738073441451,-500.0,0.0001863,2]
[350704828,1738073441460,-374.11260944,0.0001863,2]
[350704829,1738073441469,-500.0,0.0001863,2]
[350704830,1738073441478,-500.0,0.0001863,2]
[350704831,1738073441488,-500.0,0.0001863,2]
[350704832,1738073441498,-372.51841355,0.0001863,2]
[350704833,1738073441507,-500.0,0.0001863,2]
[350704834,1738073441517,-500.0,0.0001863,2]
[350704835,1738073441528,-500.0,0.0001863,2]
[350704836,1738073441537,-500.0,0.0001863,2]
[350704837,1738073441547,-500.0,0.0001863,2]
[350704838,1738073441557,-500.0,0.0001863,2]
[350704839,1738073441566,-500.0,0.0001863,2]
[350704840,1738073441576,-500.0,0.0001863,2]
[350704841,1738073441585,-500.0,0.0001863,2]
[350704842,1738073441595,-500.0,0.0001863,2]
[350704843,1738073441605,-500.0,0.0001863,2]
[350704844,1738073441614,-500.0,0.0001863,2]
[350704845,1738073441625,-500.0,0.0001863,2]
[350704846,1738073441635,-500.0,0.0001863,2]
[350704847,1738073441645,-500.0,0.0001863,2]
[350704848,1738073441654,-500.0,0.0001863,2]
[350704849,1738073441664,-500.0,0.0001863,2]
[350704850,1738073441673,-500.0,0.0001863,2]
[350704851,1738073441682,-500.0,0.0001863,2]
[350704852,1738073441692,-500.0,0.0001863,2]
[350704853,1738073441702,-529.51504996,0.0001863,2]
[350704854,1738073441711,-500.0,0.0001863,2]
[350704855,1738073441721,-500.0,0.0001863,2]
[350704856,1738073441730,-500.0,0.0001863,2]
[350704857,1738073441739,-500.0,0.0001863,2]
[350704858,1738073441748,-500.0,0.0001863,2]
[350704859,1738073441757,-500.0,0.0001863,2]
[350704860,1738073441767,-500.0,0.0001863,2]
[350704861,1738073441776,-500.0,0.0001863,2]
[350704862,1738073441785,-500.0,0.0001863,2]
[350704863,1738073441795,-500.0,0.0001863,2]
[350704864,1738073441804,-500.0,0.0001863,2]
[350704865,1738073441814,-500.0,0.0001863,2]
[350704866,1738073441823,-500.0,0.0001863,2]
[350704867,1738073441832,-500.0,0.0001863,2]
[350704868,1738073441842,-500.0,0.0001863,2]
[350704869,1738073441851,-500.0,0.0001863,2]
[350704870,1738073441860,-571.59593177,0.0001863,2]
[350704871,1738073441870,-500.0,0.0001863,2]
[350704872,1738073441879,-609.77891105,0.0001863,2]
[350704873,1738073441889,-500.0,0.0001863,2]
[350704874,1738073441898,-500.0,0.0001863,2]
[350704875,1738073441907,-500.0,0.0001863,2]
[350704876,1738073441917,-500.0,0.0001863,2]
[350704877,1738073441927,-500.0,0.0001863,2]
[350704878,1738073441936,-500.0,0.0001863,2]
[350704879,1738073441945,-500.0,0.0001863,2]
[350704880,1738073441955,-500.0,0.0001863,2]
[350704881,1738073441965,-500.0,0.0001863,2]
[350704882,1738073441975,-500.0,0.0001863,2]
[350704883,1738073442177,-500.0,0.0001863,2]
[350704884,1738073442187,-500.0,0.0001863,2]
[350704885,1738073442196,-500.0,0.0001863,2]
[350704886,1738073442205,-500.0,0.0001863,2]
[350704887,1738073442214,-500.0,0.0001863,2]
[350704888,1738073442223,-500.0,0.0001863,2]
[350704889,1738073442232,-500.0,0.0001863,2]
[350704890,1738073442241,-500.0,0.0001863,2]
[350704891,1738073442250,-500.0,0.0001863,2]
[350704892,1738073442259,-543.69933787,0.0001863,2]
[350704893,1738073442268,-500.0,0.0001863,2]
[350704894,1738073442278,-500.0,0.0001863,2]
[350704895,1738073442287,-500.0,0.0001863,2]
[350704896,1738073442296,-500.0,0.0001863,2]
[350704897,1738073442305,-500.0,0.0001863,2]
[350704898,1738073442314,-500.0,0.0001863,2]